fUSD/lending_fUSD_20250108
["ID","MTS","AMOUNT","RATE_DAILY","PERIOD"]
[348127507,1736343051122,-417.6361598,0.00010226,2]
[348127508,1736343051131,-1970.3244152,0.000103,2]
[348127509,1736343051751,-2757.92484696,0.000103,2]
[348127510,1736343051776,-2688.88036751,0.000103,2]
[348127511,1736343051788,-7116.91563249,0.000103,2]
[348127512,1736343099255,-10000.0,0.000105,5]
[348127513,1736343120509,-10000.0,0.000105,5]
[348127516,1736343306453,168.0,0.000105,30]
[348127517,1736343311926,578.0,0.000105,30]
[348127518,1736343312290,578.0,0.00011105,30]
[348127519,1736343312628,578.0,0.00011711,30]
[348127522,1736343603372,507.0,0.000105,30]
[348127523,1736343603429,169.0,0.000105,30]
[348127524,1736343603702,507.0,0.00011105,30]
[348127525,1736343604051,507.0,0.00011711,30]
[348127526,1736343904330,169.0,0.000105,30]
[348127527,1736343905644,453.0,0.000105,30]
[348127528,1736343905999,453.0,0.00011105,30]
[348127529,1736343906847,453.0,0.00011711,30]
[348127620,1736344111946,1000.0,0.0002,120]
[348127621,1736344115131,1000.0,0.0002,120]
[348127622,1736344115989,1000.0,0.0002,120]
[348127623,1736344116864,1000.0,0.0002,120]
[348127638,1736344205610,400.0,0.000105,30]
[348127639,1736344206424,400.0,0.00011105,30]
[348127640,1736344206969,400.0,0.00011711,30]
[348127647,1736344231611,-580.8,8.219e-05,2]
[348127648,1736344231620,-251.88,8.929e-05,2]
[348127649,1736344231629,-264.82,8.944e-05,2]
[348127650,1736344231639,-300.0,8.982e-05,2]
[348127651,1736344231648,-18010.29,8.983e-05,2]
[348127652,1736344231658,-164.79,8.983e-05,2]
[348127653,1736344231668,-250.0,9.006e-05,2]
[348127654,1736344231677,-398.87,9.097e-05,2]
[348127655,1736344231687,-1000.0,9.133e-05,2]
[348127656,1736344231696,-949.92,9.17e-05,2]
[348127657,1736344231707,-254.28,9.226e-05,2]
[348127658,1736344231716,-250.0,9.226e-05,2]
[348127659,1736344231725,-150.0,9.247e-05,2]
[348127660,1736344231735,-150.0,9.247e-05,2]
[348127661,1736344231744,-500.0,9.562e-05,2]
[348127662,1736344231754,-3598.5300822,9.7e-05,2]
[348127663,1736344231765,-500.0,9.787e-05,2]
[348127664,1736344231775,-150.0,9.798e-05,2]
[348127665,1736344231784,-500.0,9.799e-05,2]
[348127666,1736344231794,-552.3,9.799e-05,2]
[348127667,1736344231803,-500.0,9.799e-05,2]
[348127668,1736344231812,-500.0,9.799e-05,2]
[348127669,1736344231822,-2906.86,9.799e-05,2]
[348127670,1736344231831,-500.0,9.799e-05,2]
[348127671,1736344231842,-622.12,9.799e-05,2]
[348127672,1736344231852,-1468.44,9.799e-05,2]
[348127673,1736344231861,-1003.71,9.799e-05,2]
[348127674,1736344231871,-986.64,9.799e-05,2]
[348127675,1736344231880,-303.87,9.836e-05,2]
[348127677,1736344231890,-150.0,9.836e-05,2]
[348127678,1736344231899,-415.1,9.836e-05,2]
[348127681,1736344231908,-437.49,9.836e-05,2]
[348127682,1736344231918,-979.58,9.836e-05,2]
[348127684,1736344231927,-437.05,9.836e-05,2]
[348127686,1736344231937,-150.0,9.836e-05,2]
[348127688,1736344231946,-151.85,9.836e-05,2]
[348127690,1736344231955,-979.58,9.836e-05,2]
[348127692,1736344231965,-437.05,9.836e-05,2]
[348127694,1736344231974,-150.0,9.836e-05,2]
[348127696,1736344231983,-437.05,9.836e-05,2]
[348127698,1736344231992,-390.77,9.836e-05,2]
[348127700,1736344232001,-150.0,9.836e-05,2]
[348127702,1736344232010,-300.0,9.836e-05,2]
[348127704,1736344232019,-763.46,9.836e-05,2]
[348127706,1736344232028,-150.0,9.836e-05,2]
[348127708,1736344232038,-437.05,9.836e-05,2]
[348127710,1736344232047,-182.33,9.836e-05,2]
[348127712,1736344232056,-437.05,9.836e-05,2]
[348127714,1736344232066,-437.05,9.836e-05,2]
[348127716,1736344232075,-437.05,9.836e-05,2]
[348127718,1736344232086,-437.05,9.836e-05,2]
[348127719,1736344232096,-437.05,9.836e-05,2]
[348127721,1736344232105,-568.49,9.836e-05,2]
[348127723,1736344232115,-60529.6121,9.897e-05,2]
[348127725,1736344232124,-499.6461,9.897e-05,2]
[348127727,1736344232133,-6793.6521,9.897e-05,2]
[348127729,1736344232143,-2035.7699,9.897e-05,2]
[348127731,1736344232153,-1041.5748,9.897e-05,2]
[348127734,1736344232163,-4669.1095,9.897e-05,2]
[348127736,1736344232173,-186.51668601,9.897e-05,2]
[348127738,1736344232185,-873.48,9.9e-05,2]
[348127739,1736344232195,-387.24,9.9e-05,2]
[348127741,1736344232204,-388.06,9.9e-05,2]
[348127743,1736344232213,-3993.41256593,9.913e-05,2]
[348127745,1736344232222,-417.71068729,9.969e-05,2]
[348127747,1736344232232,-152.108,9.97e-05,2]
[348127749,1736344232241,-507.89,9.973e-05,2]
[348127751,1736344232252,-508.69,9.973e-05,2]
[348127753,1736344232261,-500.0,9.996e-05,2]
[348127755,1736344232271,-307.5983704,9.996e-05,2]
[348127757,1736344232280,-500.0,9.996e-05,2]
[348127759,1736344232289,-269.2,9.996e-05,2]
[348127761,1736344232298,-500.0,9.996e-05,2]
[348127763,1736344232307,-500.0,9.996e-05,2]
[348127765,1736344232316,-540.22,9.996e-05,2]
[348127767,1736344232325,-391.99958776,9.996e-05,2]
[348127769,1736344232336,-500.0,9.996e-05,2]
[348127771,1736344232346,-350.31,9.996e-05,2]
[348127773,1736344232358,-1044.89,9.996e-05,2]
[348127776,1736344232370,-500.0,9.996e-05,2]
[348127778,1736344232385,-2019.37,9.996e-05,2]
[348127779,1736344232398,-704.55,9.996e-05,2]
[348127780,1736344232410,-2028.98,9.996e-05,2]
[348127781,1736344232420,-500.0,9.996e-05,2]
[348127782,1736344232434,-5046.38,9.996e-05,2]
[348127783,1736344232446,-500.0,9.996e-05,2]
[348127784,1736344232458,-500.0,9.996e-05,2]
[348127785,1736344232471,-500.0,9.996e-05,2]
[348127786,1736344232485,-762.6,9.996e-05,2]
[348127787,1736344232498,-500.0,9.996e-05,2]
[348127788,1736344232510,-767.43,9.996e-05,2]
[348127789,1736344232522,-500.0,9.996e-05,2]
[348127790,1736344232533,-1307.66,9.996e-05,2]
[348127791,1736344232545,-500.0,9.996e-05,2]
[348127792,1736344232557,-1593.49,9.996e-05,2]
[348127793,1736344232570,-1511.77,9.996e-05,2]
[348127794,1736344232582,-500.0,9.996e-05,2]
[348127795,1736344232600,-500.0,9.996e-05,2]
[348127796,1736344232614,-1838.65,9.996e-05,2]
[348127797,1736344232627,-264.6941956,9.996e-05,2]
[348127798,1736344232641,-3135.27,9.996e-05,2]
[348127799,1736344232653,-500.0,9.996e-05,2]
[348127800,1736344232665,-1317.43,9.996e-05,2]
[348127801,1736344232679,-2044.45,9.996e-05,2]
[348127802,1736344232691,-842.53,9.996e-05,2]
[348127803,1736344232704,-756.93,9.996e-05,2]
[348127804,1736344232717,-500.0,9.996e-05,2]
[348127805,1736344232729,-721.38,9.996e-05,2]
[348127806,1736344232741,-671.3,9.996e-05,2]
[348127807,1736344232753,-500.0,9.996e-05,2]
[348127808,1736344232766,-2446.12,9.996e-05,2]
[348127809,1736344232780,-1355.3,9.996e-05,2]
[348127810,1736344232793,-1540.15,9.996e-05,2]
[348127811,1736344232805,-490.13,9.996e-05,2]
[348127812,1736344232816,-500.0,9.996e-05,2]
[348127813,1736344232826,-500.0,9.996e-05,2]
[348127814,1736344232841,-1040.03,9.996e-05,2]
[348127815,1736344232852,-1037.62,9.996e-05,2]
[348127816,1736344232866,-936.694682,9.996e-05,2]
[348127817,1736344232879,-1286.59,9.996e-05,2]
[348127818,1736344232890,-914.79,9.996e-05,2]
[348127819,1736344232900,-158.601537,9.996e-05,2]
[348127820,1736344232910,-1594.09,9.996e-05,2]
[348127821,1736344232922,-744.04,9.996e-05,2]
[348127822,1736344232934,-500.0,9.996e-05,2]
[348127823,1736344232947,-500.0,9.996e-05,2]
[348127824,1736344232958,-4094.45,9.996e-05,2]
[348127825,1736344232968,-500.0,9.996e-05,2]
[348127826,1736344232979,-505.10571353,9.996e-05,2]
[348127827,1736344232989,-500.0,9.996e-05,2]
[348127828,1736344233001,-492.28,9.997e-05,2]
[348127829,1736344233012,-500.0,9.997e-05,2]
[348127830,1736344233024,-500.0,9.997e-05,2]
[348127831,1736344233035,-488.535193,9.997e-05,2]
[348127832,1736344233046,-708.7,9.997e-05,2]
[348127833,1736344233062,-500.28,9.997e-05,2]
[348127834,1736344233074,-500.0,9.997e-05,2]
[348127835,1736344233089,-500.0,9.997e-05,2]
[348127836,1736344233102,-410.12137417,9.997e-05,2]
[348127837,1736344233114,-500.0,9.997e-05,2]
[348127838,1736344233127,-500.0,9.997e-05,2]
[348127839,1736344233139,-500.0,9.997e-05,2]
[348127840,1736344233151,-3215.87,9.997e-05,2]
[348127841,1736344233163,-500.0,9.997e-05,2]
[348127842,1736344233177,-500.0,9.997e-05,2]
[348127843,1736344233190,-500.0,9.997e-05,2]
[348127844,1736344233202,-500.0,9.997e-05,2]
[348127845,1736344233214,-500.0,9.997e-05,2]
[348127846,1736344233227,-500.0,9.997e-05,2]
[348127847,1736344233239,-500.0,9.997e-05,2]
[348127848,1736344233252,-834.8,9.997e-05,2]
[348127849,1736344233265,-538.62,9.997e-05,2]
[348127850,1736344233277,-522.97,9.997e-05,2]
[348127851,1736344233290,-500.0,9.997e-05,7]
[348127852,1736344233302,-500.0,9.997e-05,2]
[348127853,1736344233314,-500.0,9.997e-05,2]
[348127854,1736344233326,-500.0,9.997e-05,2]
[348127855,1736344233339,-500.0,9.997e-05,2]
[348127856,1736344233351,-500.0,9.997e-05,2]
[348127857,1736344233364,-500.0,9.997e-05,2]
[348127858,1736344233375,-517.68,9.997e-05,2]
[348127859,1736344233387,-500.0,9.997e-05,2]
[348127860,1736344233399,-500.0,9.997e-05,2]
[348127861,1736344233411,-500.0,9.997e-05,2]
[348127862,1736344233422,-506.5,9.997e-05,2]
[348127863,1736344233433,-500.0,9.997e-05,2]
[348127864,1736344233445,-500.0,9.997e-05,2]
[348127865,1736344233457,-500.0,9.997e-05,2]
[348127866,1736344233468,-607.45,9.997e-05,2]
[348127867,1736344233480,-500.0,9.997e-05,2]
[348127868,1736344233491,-500.0,9.997e-05,2]
[348127869,1736344233503,-500.0,9.997e-05,2]
[348127870,1736344233514,-500.0,9.997e-05,2]
[348127871,1736344233526,-583.04,9.997e-05,2]
[348127872,1736344233537,-500.0,9.997e-05,2]
[348127873,1736344233549,-500.0,9.997e-05,2]
[348127874,1736344233560,-500.0,9.997e-05,2]
[348127875,1736344233572,-500.0,9.997e-05,2]
[348127876,1736344233583,-500.0,9.997e-05,2]
[348127877,1736344233596,-500.0,9.997e-05,2]
[348127878,1736344233608,-500.0,9.997e-05,2]
[348127879,1736344233619,-500.0,9.997e-05,2]
[348127880,1736344233631,-500.0,9.997e-05,2]
[348127881,1736344233642,-500.0,9.997e-05,2]
[348127882,1736344233654,-500.0,9.997e-05,2]
[348127883,1736344233666,-500.0,9.997e-05,2]
[348127884,1736344233677,-500.0,9.997e-05,2]
[348127885,1736344233688,-500.0,9.997e-05,2]
[348127886,1736344233699,-500.0,9.997e-05,2]
[348127887,1736344233711,-500.0,9.997e-05,2]
[348127888,1736344233722,-909.1,9.997e-05,2]
[348127889,1736344233734,-500.0,9.997e-05,2]
[348127890,1736344233745,-948.19,9.997e-05,2]
[348127891,1736344233756,-586.67,9.997e-05,2]
[348127892,1736344233769,-500.0,9.997e-05,2]
[348127893,1736344233781,-500.0,9.997e-05,2]
[348127894,1736344233792,-500.0,9.997e-05,2]
[348127895,1736344233804,-196.14,9.997e-05,2]
[348127896,1736344233815,-358.22,9.997e-05,2]
[348127897,1736344233826,-609.81,9.997e-05,2]
[348127898,1736344233839,-500.0,9.997e-05,2]
[348127899,1736344233851,-500.0,9.997e-05,2]
[348127900,1736344233863,-500.0,9.997e-05,2]
[348127901,1736344233875,-535.52,9.997e-05,2]
[348127902,1736344233886,-643.67,9.997e-05,2]
[348127903,1736344233898,-500.0,9.997e-05,2]
[348127904,1736344233909,-500.0,9.997e-05,2]
[348127905,1736344233920,-500.0,9.997e-05,2]
[348127906,1736344233931,-500.0,9.997e-05,2]
[348127907,1736344233943,-500.0,9.997e-05,2]
[348127908,1736344233954,-500.0,9.997e-05,2]
[348127909,1736344233966,-500.0,9.997e-05,2]
[348127910,1736344233977,-500.0,9.997e-05,2]
[348127911,1736344233989,-500.0,9.997e-05,2]
[348127912,1736344234000,-500.0,9.997e-05,2]
[348127913,1736344234012,-1360.94,9.997e-05,2]
[348127914,1736344234023,-500.0,9.997e-05,2]
[348127915,1736344234035,-500.0,9.997e-05,2]
[348127916,1736344234046,-500.0,9.997e-05,2]
[348127917,1736344234058,-637.24,9.997e-05,2]
[348127918,1736344234069,-500.0,9.997e-05,2]
[348127919,1736344234081,-500.0,9.997e-05,2]
[348127920,1736344234094,-500.0,9.997e-05,2]
[348127921,1736344234106,-709.36,9.997e-05,2]
[348127922,1736344234117,-640.92,9.997e-05,2]
[348127923,1736344234130,-819.61,9.997e-05,2]
[348127924,1736344234142,-502.99251895,9.997e-05,2]
[348127925,1736344234154,-511.47,9.997e-05,2]
[348127926,1736344234166,-500.0,9.997e-05,2]
[348127927,1736344234182,-291.98,9.997e-05,2]
[348127928,1736344234194,-500.0,9.997e-05,2]
[348127929,1736344234205,-404.68624108,9.997e-05,2]
[348127930,1736344234218,-572.43,9.997e-05,2]
[348127931,1736344234230,-500.0,9.997e-05,2]
[348127932,1736344234243,-500.0,9.997e-05,2]
[348127933,1736344234255,-640.72,9.997e-05,2]
[348127934,1736344234266,-500.0,9.997e-05,2]
[348127935,1736344234278,-500.9314285,9.997e-05,2]
[348127936,1736344234290,-500.0,9.997e-05,2]
[348127937,1736344234301,-637.8,9.997e-05,2]
[348127938,1736344234313,-1490.92,9.997e-05,2]
[348127939,1736344234325,-500.26563067,9.997e-05,2]
[348127940,1736344234338,-694.44,9.997e-05,2]
[348127941,1736344234351,-383.92329408,9.997e-05,2]
[348127942,1736344234363,-500.0,9.997e-05,2]
[348127943,1736344234376,-500.0,9.997e-05,2]
[348127944,1736344234388,-500.0,9.997e-05,2]
[348127945,1736344234399,-500.0,9.997e-05,2]
[348127946,1736344234411,-500.0,9.997e-05,2]
[348127947,1736344234423,-500.0,9.997e-05,2]
[348127948,1736344234435,-500.0,9.997e-05,2]
[348127949,1736344234447,-501.09314207,9.997e-05,2]
[348127950,1736344234459,-500.0,9.997e-05,2]
[348127951,1736344234471,-700.34,9.997e-05,2]
[348127952,1736344234483,-1452.56,9.997e-05,2]
[348127953,1736344234492,-500.0,9.997e-05,2]
[348127954,1736344234502,-500.0,9.997e-05,2]
[348127955,1736344234797,-500.0,9.997e-05,2]
[348127956,1736344234825,-500.0,9.997e-05,2]
[348127957,1736344234838,-500.0,9.997e-05,2]
[348127958,1736344234848,-501.27273472,9.997e-05,2]
[348127959,1736344234858,-500.0,9.997e-05,2]
[348127960,1736344234868,-500.0,9.997e-05,2]
[348127961,1736344234878,-151.46624664,9.997e-05,2]
[348127962,1736344234887,-500.0,9.997e-05,2]
[348127963,1736344234896,-500.0,9.997e-05,2]
[348127964,1736344234906,-649.75896811,9.997e-05,2]
[348127965,1736344234916,-500.0,9.997e-05,2]
[348127966,1736344234925,-5005.39614697,9.997e-05,2]
[348127967,1736344234935,-500.44043998,9.997e-05,2]
[348127968,1736344234944,-500.0,9.997e-05,2]
[348127969,1736344234954,-561.58248868,9.997e-05,2]
[348127970,1736344234963,-749.5,9.997e-05,2]
[348127971,1736344234972,-501.19726661,9.997e-05,2]
[348127972,1736344234982,-500.0,9.997e-05,2]
[348127973,1736344234992,-500.0,9.997e-05,2]
[348127974,1736344235001,-500.0,9.997e-05,2]
[348127975,1736344235011,-500.71213201,9.997e-05,2]
[348127976,1736344235021,-906.49,9.997e-05,2]
[348127977,1736344235031,-500.0,9.997e-05,2]
[348127978,1736344235041,-600.72,9.997e-05,2]
[348127979,1736344235050,-500.0,9.997e-05,2]
[348127980,1736344235060,-500.0,9.997e-05,2]
[348127981,1736344235070,-500.0,9.997e-05,2]
[348127982,1736344235079,-500.0,9.997e-05,2]
[348127983,1736344235091,-504.47011351,9.997e-05,2]
[348127984,1736344235100,-501.27066171,9.997e-05,2]
[348127985,1736344235110,-500.0,9.997e-05,2]
[348127986,1736344235119,-500.0,9.997e-05,2]
[348127987,1736344235129,-500.0,9.997e-05,2]
[348127988,1736344235139,-581.64,9.997e-05,2]
[348127989,1736344235149,-500.0,9.997e-05,2]
[348127990,1736344235158,-500.0,9.997e-05,2]
[348127991,1736344235168,-500.84918825,9.997e-05,2]
[348127992,1736344235182,-501.54,9.997e-05,2]
[348127993,1736344235192,-500.0,9.997e-05,2]
[348127994,1736344235201,-505.15450601,9.997e-05,2]
[348127995,1736344235210,-500.0,9.997e-05,2]
[348127996,1736344235221,-500.31360667,9.997e-05,2]
[348127997,1736344235231,-404.70105909,9.997e-05,2]
[348127998,1736344235241,-2384.85,9.997e-05,2]
[348127999,1736344235251,-500.0,9.997e-05,2]
[348128000,1736344235261,-500.0,9.997e-05,2]
[348128001,1736344235271,-500.0,9.997e-05,2]
[348128002,1736344235281,-521.7,9.997e-05,2]
[348128003,1736344235290,-599.2,9.997e-05,2]
[348128004,1736344235302,-500.0,9.997e-05,2]
[348128005,1736344235312,-500.0,9.997e-05,2]
[348128006,1736344235321,-1118.75,9.997e-05,2]
[348128007,1736344235331,-500.0,9.997e-05,2]
[348128008,1736344235342,-635.37,9.997e-05,2]
[348128009,1736344235352,-500.0,9.997e-05,2]
[348128010,1736344235362,-615.59691989,9.997e-05,2]
[348128011,1736344235371,-500.0,9.997e-05,2]
[348128012,1736344235380,-500.0,9.997e-05,2]
[348128013,1736344235390,-645.21,9.997e-05,2]
[348128014,1736344235399,-500.0,9.997e-05,2]
[348128015,1736344235408,-3931.74,9.997e-05,2]
[348128016,1736344235417,-528.08,9.997e-05,2]
[348128017,1736344235427,-567.54,9.997e-05,2]
[348128018,1736344235437,-500.0,9.997e-05,2]
[348128019,1736344235446,-500.0,9.997e-05,2]
[348128020,1736344235456,-500.0,9.997e-05,2]
[348128021,1736344235468,-1609.27,9.997e-05,2]
[348128022,1736344235477,-500.0,9.997e-05,2]
[348128023,1736344235487,-3349.39,9.997e-05,2]
[348128024,1736344235496,-526.55,9.997e-05,2]
[348128025,1736344235506,-500.0,9.997e-05,2]
[348128026,1736344235514,-500.0,9.997e-05,2]
[348128027,1736344235524,-730.62,9.997e-05,2]
[348128028,1736344235533,-500.0,9.997e-05,2]
[348128029,1736344235543,-500.0,9.997e-05,2]
[348128030,1736344235552,-437.50982336,9.997e-05,2]
[348128031,1736344235562,-500.0,9.997e-05,2]
[348128032,1736344235571,-500.0,9.997e-05,2]
[348128033,1736344235581,-500.0,9.997e-05,2]
[348128034,1736344235592,-3370.79,9.997e-05,2]
[348128035,1736344235601,-681.98,9.997e-05,2]
[348128036,1736344235610,-500.0,9.997e-05,2]
[348128037,1736344235620,-500.0,9.997e-05,2]
[348128038,1736344235630,-1401.66,9.997e-05,2]
[348128039,1736344235640,-652.32,9.997e-05,2]
[348128040,1736344235650,-500.0,9.997e-05,2]
[348128041,1736344235659,-500.0,9.997e-05,2]
[348128042,1736344235669,-500.0,9.997e-05,2]
[348128043,1736344235679,-500.0,9.997e-05,2]
[348128044,1736344235688,-500.0,9.997e-05,2]
[348128045,1736344235698,-2568.14,9.997e-05,2]
[348128046,1736344235707,-500.0,9.997e-05,2]
[348128047,1736344235717,-697.7,9.997e-05,2]
[348128048,1736344235726,-1448.06,9.997e-05,2]
[348128049,1736344235735,-500.0,9.997e-05,2]
[348128050,1736344235746,-500.0,9.997e-05,2]
[348128051,1736344235757,-500.0,9.997e-05,2]
[348128052,1736344235768,-500.0,9.997e-05,2]
[348128053,1736344235777,-500.0,9.997e-05,2]
[348128054,1736344235787,-3119.28,9.997e-05,2]
[348128055,1736344235797,-500.0,9.997e-05,2]
[348128056,1736344235807,-500.0,9.997e-05,2]
[348128057,1736344235816,-500.0,9.997e-05,2]
[348128058,1736344235826,-3238.01,9.997e-05,2]
[348128059,1736344235836,-500.0,9.997e-05,2]
[348128060,1736344235846,-500.0,9.997e-05,2]
[348128061,1736344235855,-500.0,9.997e-05,2]
[348128062,1736344235865,-500.0,9.997e-05,2]
[348128063,1736344235874,-1089.35,9.997e-05,2]
[348128064,1736344235884,-500.0,9.997e-05,2]
[348128065,1736344235894,-234.11917836,9.997e-05,2]
[348128066,1736344235905,-500.0,9.997e-05,2]
[348128067,1736344235914,-500.0,9.997e-05,2]
[348128068,1736344235923,-500.0,9.997e-05,2]
[348128069,1736344235932,-1064.8,9.997e-05,2]
[348128070,1736344235943,-500.0,9.998e-05,2]
[348128071,1736344235952,-500.0,9.998e-05,2]
[348128072,1736344235962,-500.0,9.998e-05,2]
[348128073,1736344235972,-533.91,9.998e-05,2]
[348128074,1736344235982,-500.0,9.998e-05,2]
[348128075,1736344235991,-649.87,9.998e-05,2]
[348128076,1736344236000,-1350.02,9.998e-05,2]
[348128077,1736344236010,-1324.12,9.998e-05,2]
[348128078,1736344236019,-2922.63,9.998e-05,2]
[348128079,1736344236029,-6159.28,9.998e-05,2]
[348128080,1736344236039,-640.76,9.998e-05,2]
[348128081,1736344236048,-500.0,9.998e-05,2]
[348128082,1736344236057,-1159.27,9.998e-05,2]
[348128083,1736344236067,-2301.75,9.998e-05,2]
[348128084,1736344236077,-1000.0,9.998e-05,2]
[348128085,1736344236086,-1283.62,9.998e-05,2]
[348128086,1736344236096,-623.81,9.998e-05,2]
[348128087,1736344236106,-500.0,9.998e-05,2]
[348128088,1736344236116,-3152.31,9.998e-05,2]
[348128089,1736344236126,-1873.81,9.998e-05,2]
[348128090,1736344236136,-1308.09,9.998e-05,2]
[348128091,1736344236145,-1875.78,9.998e-05,2]
[348128092,1736344236155,-1708.44,9.998e-05,2]
[348128093,1736344236165,-500.0,9.998e-05,2]
[348128094,1736344236175,-579.09,9.998e-05,2]
[348128095,1736344236187,-1155.02,9.998e-05,2]
[348128096,1736344236197,-865.55,9.998e-05,2]
[348128097,1736344236206,-1273.23,9.998e-05,2]
[348128098,1736344236216,-2355.74,9.998e-05,2]
[348128099,1736344236226,-749.48,9.998e-05,2]
[348128100,1736344236235,-533.41,9.999e-05,2]
[348128101,1736344236245,-600.0,0.0001,2]
[348128102,1736344236258,-1000.0,0.0001,2]
[348128103,1736344236268,-10000.0,0.0001,3]
[348128104,1736344236278,-10000.0,0.0001,4]
[348128105,1736344236289,-10000.0,0.0001,5]
[348128106,1736344236299,-10000.0,0.0001,6]
[348128107,1736344236309,-10000.0,0.0001,9]
[348128108,1736344236319,-10000.0,0.0001,10]
[348128109,1736344236329,-10000.0,0.0001,11]
[348128110,1736344236339,-10000.0,0.0001,12]
[348128111,1736344236349,-10000.0,0.0001,13]
[348128112,1736344236358,-10000.0,0.0001,14]
[348128113,1736344236367,-6273.43164184,0.0001,15]
[348128114,1736344237500,-438.43673212,0.0001,15]
[348128122,1736344239508,-277.48,9.996e-05,2]
[348128123,1736344239518,-500.0,9.996e-05,2]
[348128124,1736344239529,-500.0,9.997e-05,2]
[348128125,1736344239539,-591.7,0.0001,15]
[348128126,1736344239551,-467.7135318,0.0001,15]
[348128127,1736344239563,-2228.71809424,0.0001,15]
[348128128,1736344239573,-7729.88168084,0.0001,16]
[348128129,1736344239593,-2270.11831916,0.0001,16]
[348128130,1736344239603,-982.41923395,0.0001,17]
[348128131,1736344239618,-1522.6478271,0.0001,17]
[348128132,1736344239641,-902.9349193,0.0001,17]
[348128133,1736344239652,-260.72299452,0.0001,17]
[348128134,1736344239751,-656.14,0.0001,17]
[348128135,1736344239762,-731.31115522,0.0001,17]
[348128136,1736344239774,-4538.59002,0.0001,17]
[348128137,1736344239786,-405.23384991,0.0001,17]
[348128138,1736344239797,-7159.0,0.0001,2]
[348128139,1736344239808,-1000.0,0.0001,2]
[348128140,1736344239818,-417.7106873,0.0001,2]
[348128141,1736344239828,-417.71068729,0.00010038,2]
[348128142,1736344239837,-264.82,0.00010062,2]
[348128143,1736344239847,-500.0,0.00010073,2]
[348128144,1736344239857,-552.3,0.00010073,2]
[348128145,1736344239866,-500.0,0.00010073,2]
[348128146,1736344239876,-500.0,0.00010073,2]
[348128147,1736344239886,-2906.86,0.00010073,2]
[348128148,1736344239896,-500.0,0.00010073,2]
[348128149,1736344239905,-622.12,0.00010073,2]
[348128150,1736344239915,-1468.44,0.00010073,2]
[348128151,1736344239925,-1003.71,0.00010073,2]
[348128152,1736344239935,-986.64,0.00010073,2]
[348128153,1736344239945,-417.71068729,0.00010107,2]
[348128154,1736344239955,-156.4,0.00010137,2]
[348128155,1736344239964,-3744.87483821,0.00010146,2]
[348128157,1736344239976,-1711.08054,0.00010146,2]
[348128159,1736344239995,-2783.02960995,0.00010146,2]
[348128160,1736344240013,-3056.254288,0.00010146,2]
[348128161,1736344240033,-1165.35320515,0.00010146,2]
[348128167,1736344242451,-500.0,9.997e-05,2]
[348128168,1736344242462,-1058.32946893,0.00010146,2]
[348128169,1736344242473,-273.88727203,0.00010146,2]
[348128170,1736344242507,-1723.09854879,0.00010146,2]
[348128171,1736344242518,-458.00134583,0.00010146,2]
[348128173,1736344242531,-284.3,0.00010146,2]
[348128174,1736344242542,-3191.0,0.00010146,2]
[348128175,1736344242553,-452.9,0.00010146,2]
[348128176,1736344242564,-428.9,0.00010146,2]
[348128177,1736344242582,-4479.20749108,0.00010146,2]
[348128178,1736344242633,-10154.51202301,0.00010146,2]
[348128179,1736344242645,-191185.4219561,0.00010146,2]
[348128180,1736344242656,-500.0,0.00010146,2]
[348128181,1736344242668,-4791.17830158,0.00010146,2]
[348128182,1736344242688,-2829.18561165,0.00010146,2]
[348128183,1736344242699,-975.06641355,0.00010146,2]
[348128184,1736344242746,-535.40047792,0.00010146,2]
[348128194,1736344245612,-1021.482677,9.996e-05,2]
[348128195,1736344245622,-500.0,9.996e-05,2]